[Event "MCCT Chessable Masters 2022"]
[Site "Online"]
[Date "2022.05.16"]
[Round "14.2"]
[White "Tari, Aryan"]
[Black "Wei, Yi"]
[Result "1/2-1/2"]
[ECO "B51"]
[WhiteElo "2654"]
[BlackElo "2727"]
[Annotator "TA"]
[PlyCount "126"]
[EventDate "2022.05.19"]
[EventType "tourn"]
[EventCountry "NET"]
[SourceTitle "playchess.com"]
[Source "ChessBase"]
[SourceQuality "1"]
[TimeControl "900+10"]

{[%evp 9,126,22,19,12,21,0,0,0,9,8,45,39,43,44,35,40,27,40,39,36,35,35,52,52,54,52,87,34,45,61,64,51,87,91,85,72,94,8,22,-139,-46,-41,-47,-33,-37,-43,-52,-47,-46,-47,-39,-59,-59,-54,-64,-59,-50,-47,-52,-66,-78,-74,-74,-80,-75,-99,-72,-73,-56,-69,-72,-74,-61,-68,-54,-73,-44,-59,-50,-64,-38,-62,0,0,0,0,0,0,0,0,0,0,0,0,0,0,0,0,0,0,12,8,8,8,5,2,8,0,4,0,14,0,31,0,8,0,0,0,0]} 1. e4 {[%emt 0:00:00]} c5 {[%emt 0:00:00]} 2. Nf3 {[%emt 0:00:03]} d6 {[%emt 0:00:02]} 3. Bb5+ {[%emt 0:00:01]} Nd7 {[%emt 0:00:01]} 4. O-O {[%emt 0:00:02]} a6 {[%emt 0:00:03]} 5. Bd3 {[%emt 0:00:01]} Ngf6 {[%emt 0:00:01]} 6. Re1 {[%emt 0:00:29] B51: Sicilian: Moscow Variation (3 Bb5+) without 3...Bd7.} e6 {[%emt 0:00:01]} 7. Bf1 {[%emt 0:00:15]} b5 {[%emt 0:01:10]} 8. a4 {[%emt 0:00:04]} Bb7 {[%emt 0:00:16]} 9. d4 {[%emt 0:00:06]} b4 {[%emt 0:01:33] [#]} (9... Bxe4 {is interesting.} 10. dxc5 dxc5 11. Ng5 Bb7) 10. d5 $146 {[%emt 0:01:23]} ({Predecessor:} 10. e5 dxe5 11. dxe5 Nd5 12. Nbd2 Qc7 13. Nc4 a5 14. Bd3 Be7 15. Ng5 N7b6 16. Nxb6 Nxb6 17. Bb5+ Bc6 18. Qf3 Bxg5 19. Bxc6+ Kf8 20. Bxa8 Bxc1 21. Raxc1 {1-0 (21) Fischer,J (2071)-Afraoui,S (1889) Europe Echecs INT 2021}) 10... exd5 {[%emt 0:01:15]} 11. exd5+ {[%emt 0:00:03]} Be7 {[%emt 0:00:02]} 12. c4 {[%emt 0:01:51]} bxc3 {[%emt 0:00:03]} 13. Nxc3 {[%emt 0:00:03]} O-O {[%emt 0:00:03]} 14. a5 {[%emt 0:00:04] Against Nb6} Re8 {[%emt 0:00:08]} 15. Bc4 {[%emt 0:00:52]} Qc7 {[%emt 0:01:39]} 16. Qd3 {[%emt 0:00:35]} h6 {[%emt 0:02:56]} 17. h3 {[%emt 0:00:12]} Nf8 {[%emt 0:00:22]} 18. Bf4 {[%emt 0:01:07] White is more active.} (18. Nh4 $16) 18... Ng6 $14 {[%emt 0:00:03]} 19. Bh2 {[%emt 0:00:02]} Nd7 {[%emt 0:00:44]} 20. Re2 {[%emt 0:01:44]} Rac8 {[%emt 0:01:28]} 21. Rae1 {[%emt 0:00:56]} ({Of course not} 21. Bxa6 c4 22. Bxc4 Qxc4 23. Qxc4 Rxc4 24. Bxd6 Ba6 $15) 21... Nf6 {[%emt 0:00:07]} 22. Ne4 {[%emt 0:00:40][%cal Oh2d6] aiming for Bxd6!} ({Inferior is} 22. Bxa6 c4 23. Bxc4 Qxc4 24. Qxc4 Rxc4 25. Bxd6 Bxd6 $17) 22... Red8 {[%emt 0:00:18] [#]} 23. Ned2 {[%emt 0:02:10]} ({Not} 23. Bxa6 $2 c4 24. Nxf6+ Bxf6 25. Bxc4 Qxc4 26. Qxc4 Rxc4 27. Re8+ Kh7 28. Rxd8 Bxd8 29. Bxd6 Bxa5 $19) (23. h4 $1 $16) 23... Bf8 $11 {[%emt 0:00:34]} 24. Nb3 $2 {[%emt 0:01:16]} (24. g4 $11) 24... Nxd5 {[%emt 0:00:54]} 25. Bxd5 $15 {[%emt 0:00:06] Bc4 is the strong threat.} c4 {[%emt 0:00:04]} 26. Qd2 {[%emt 0:01:01] And now Nc1 would win.} Bxd5 {[%emt 0:00:57]} 27. Qxd5 {[%emt 0:00:00] [#] Strongly threatening Nbd2.} cxb3 {[%emt 0:00:01]} 28. Re3 {[%emt 0:00:51]} Ne7 {[%emt 0:00:27][%cal Bg6e7,Be7c6,Bc6a5,Ba5c4,Bc4b2,Bb2d3][%mdl 32]} 29. Qxb3 {[%emt 0:00:10]} Qxa5 {[%emt 0:00:08]} 30. Qa3 {[%emt 0:00:53]} Nc6 {[%emt 0:01:34]} 31. Qxa5 {[%emt 0:00:37]} Nxa5 {[%emt 0:00:01]} 32. Ra3 {[%emt 0:00:11]} Nc4 {[%emt 0:00:01][%csl LRa3,LRb2]} 33. Rxa6 {[%emt 0:00:01]} Nxb2 {[%emt 0:00:07]} 34. Ra7 {[%emt 0:00:46]} d5 {[%emt 0:00:21]} 35. Rb7 {[%emt 0:00:39]} Nd3 {[%emt 0:00:20]} 36. Rd1 {[%emt 0:00:02]} Nc5 {[%emt 0:02:00]} 37. Rb5 {[%emt 0:00:26]} Ne4 {[%emt 0:00:10] Hoping for ...Nc3.} 38. Be5 {[%emt 0:00:01]} Bc5 {[%emt 0:00:31]} 39. Bd4 {[%emt 0:00:36]} Bxd4 {[%emt 0:00:21]} 40. Rxd4 {[%emt 0:00:00]} Rc1+ {[%emt 0:00:26]} 41. Kh2 {[%emt 0:00:02]} Nf6 {[%emt 0:00:00]} 42. Rd2 {[%emt 0:00:20]} Ra8 {[%emt 0:00:12]} 43. g3 {[%emt 0:00:51]} Ne4 {[%emt 0:00:21]} 44. Rdb2 {[%emt 0:00:01]} Rd1 {[%emt 0:00:16]} 45. Kg2 {[%emt 0:00:07]} Kh7 {[%emt 0:00:18]} (45... Ra7 $15) 46. Rb7 $11 {[%emt 0:00:03]} f6 {[%emt 0:00:17]} 47. Rc2 {[%emt 0:00:08]} Rda1 {[%emt 0:00:12]} 48. Rcc7 {[%emt 0:00:27]} Rg8 {[%emt 0:00:02]} 49. Rc2 {[%emt 0:00:10] Prevents Ra2.} Rga8 {[%emt 0:00:03]} 50. Rcc7 {[%emt 0:00:01]} Rg8 {[%emt 0:00:01]} 51. Rc2 {[%emt 0:00:00] Inhibits Ra2.} Raa8 {[%emt 0:00:24]} 52. Nd4 {[%emt 0:00:03]} Nd6 {[%emt 0:00:16]} 53. Rd7 {[%emt 0:00:12]} Rad8 {[%emt 0:00:08]} 54. Rcc7 {[%emt 0:00:05]} Nc4 {[%emt 0:00:16]} 55. Nf5 {[%emt 0:00:06][%cal Rd7g7]} Rxd7 {[%emt 0:00:08]} 56. Rxd7 {[%emt 0:00:00][%mdl 4096] Endgame KRN-KRN} Nb6 {[%emt 0:00:08]} 57. Rb7 {[%emt 0:00:06]} Na4 {[%emt 0:00:07]} 58. Rd7 {[%emt 0:00:01]} Nb6 {[%emt 0:00:10]} 59. Rb7 {[%emt 0:00:02]} Na4 {[%emt 0:00:12]} 60. Rd7 {[%emt 0:00:01]} Nc3 {[%emt 0:00:02]} 61. Ne7 {[%emt 0:00:04]} Re8 {[%emt 0:00:01] The position is equal.} 62. Nxd5 {[%emt 0:00:01]} Nxd5 {[%emt 0:00:01]} 63. Rxd5 {[%emt 0:00:04]} Kg6 {[%emt 0:00:01] Weighted Error Value: White=0.13 (very precise) /Black=0.08 (flawless)} 1/2-1/2

[Event "MCCT Chessable Masters 2022"]
[Site "Online"]
[Date "2022.05.16"]
[Round "14.3"]
[White "Grandelius, Nils"]
[Black "Vidit, Santosh Gujrathi"]
[Result "0-1"]
[ECO "C41"]
[WhiteElo "2635"]
[BlackElo "2723"]
[Annotator "TA"]
[PlyCount "100"]
[EventDate "2022.05.19"]
[EventType "tourn"]
[EventCountry "NET"]
[SourceTitle "playchess.com"]
[Source "ChessBase"]
[SourceQuality "1"]
[TimeControl "900+10"]

{[%evp 9,100,16,17,10,40,47,41,31,42,26,38,33,56,33,33,13,40,13,18,22,27,23,22,18,14,21,47,0,0,0,0,0,0,0,21,23,84,79,81,30,35,16,23,14,63,0,0,0,0,0,0,0,0,0,0,0,0,0,0,0,0,0,0,-88,-88,-186,-186,-364,-362,-364,-364,-364,-364,-364,-364,-29946,-317,-1397,-317,-317,-317,-317,-317,-4939,-1822,-4925,-4918,-5065,-4991,-4562,-1091,-29998,-29999]} 1. e4 {[%emt 0:00:00]} d6 {[%emt 0:00:00]} 2. d4 {[%emt 0:00:06]} Nf6 {[%emt 0:00:01]} 3. Nc3 {[%emt 0:00:03]} e5 {[%emt 0:00:01]} 4. Nf3 {[%emt 0:00:07]} Nbd7 {[%emt 0:00:01]} 5. Rg1 {[%emt 0:00:08]} c6 {[%emt 0:00:50]} 6. g4 {[%emt 0:00:14][%cal Bg2g4,Bg4g5][%mdl 32] C41: Philidor Defence.} g6 {[%emt 0:02:35]} 7. g5 {[%emt 0:00:37]} Nh5 {[%emt 0:00:02]} 8. Be3 {[%emt 0:00:00] White is slightly better.} Bg7 {[%emt 0:00:28] [#]} 9. dxe5 $146 {[%emt 0:01:17]} ({Predecessor:} 9. Qd2 O-O 10. Be2 b5 11. a3 a5 12. Nh4 Nf4 13. Bxf4 exf4 14. Nf3 Bb7 15. Qxf4 {0-1 (76) Sevian,S (2654)-Jobava,B (2582) Chess.com INT 2021}) 9... dxe5 {[%emt 0:00:42]} 10. Qd6 {[%emt 0:00:06]} Qe7 {[%emt 0:00:16]} 11. Qxe7+ {[%emt 0:00:55]} Kxe7 {[%emt 0:00:02]} 12. O-O-O {[%emt 0:00:00]} b6 {[%emt 0:00:29]} 13. Nb1 {[%emt 0:03:00]} h6 {[%emt 0:02:57]} 14. h4 {[%emt 0:00:07]} hxg5 {[%emt 0:00:05]} 15. hxg5 {[%emt 0:00:00]} Nf4 {[%emt 0:00:38][%cal Bh5f4,Bf4e6,Be6d4][%mdl 32]} 16. Nbd2 {[%emt 0:00:07]} Ne6 {[%emt 0:00:33]} 17. Nc4 {[%emt 0:00:48]} c5 {[%emt 0:01:46]} 18. c3 {[%emt 0:03:41]} (18. Nd6 $1 $14) 18... Bb7 $11 {[%emt 0:00:02]} 19. Nd6 {[%emt 0:00:01]} Bc6 {[%emt 0:00:01]} 20. Bc4 {[%emt 0:00:01][%cal Od6f7]} Rh3 {[%emt 0:00:02]} 21. Ne1 {[%emt 0:01:51][%cal Od6f7]} Nd4 {[%emt 0:00:39]} 22. Nxf7 {[%emt 0:02:24]} b5 {[%emt 0:00:01] [#]} (22... Bxe4 $11 23. Nh6 (23. cxd4 $2 cxd4 24. Nxe5 Bxe5 $17) 23... Rd8) 23. Bf1 $1 $16 {[%emt 0:00:02]} (23. cxd4 exd4 24. Bf1 (24. Bb3 $2 dxe3 25. Nc2 exf2 $19) 24... Rh5 $17) 23... Rh4 {[%emt 0:01:01] [#]} 24. Nxe5 {[%emt 0:01:32]} ({Don't play} 24. cxd4 $6 exd4 25. Ng2 Rxe4 $11) (24. Nh6 $1 $16) 24... Bxe5 $11 {[%emt 0:00:44]} 25. cxd4 {[%emt 0:00:07]} cxd4 {[%emt 0:00:02]} 26. Nf3 {[%emt 0:01:32]} Bxe4 {[%emt 0:01:22]} 27. Nxd4 {[%emt 0:00:28]} (27. Nxh4 $14 dxe3 28. fxe3 Rc8+ 29. Kd2) 27... Rc8+ {[%emt 0:00:46][%cal Ba8c8,Bc8c2,Bc2f2][%mdl 32]} 28. Kd2 {[%emt 0:00:01]} Nb6 {[%emt 0:01:41]} 29. Bxb5 {[%emt 0:00:28]} Bxd4 {[%emt 0:00:21]} 30. Bxd4 {[%emt 0:00:00]} Rc2+ $1 {[%emt 0:00:01]} 31. Ke1 {[%emt 0:00:07]} Bf3 $36 {[%emt 0:00:05][%mdl 2048] Inhibits Be2. Strongly threatening ...Rxd4. Black has good play.} 32. Bf6+ {[%emt 0:00:20]} Ke6 {[%emt 0:00:05] Chess con chili.} 33. Bd3 {[%emt 0:00:04][%csl LRc2,LRg6] Inhibits Re4+.} Bxd1 {[%emt 0:00:14]} 34. Kxd1 {[%emt 0:00:00]} Rxf2 {[%emt 0:00:02]} 35. Bxg6 {[%emt 0:00:16] A strong pair of Bishops.} Nd5 {[%emt 0:00:03]} 36. Kc1 {[%emt 0:00:13]} (36. Re1+ $11 {keeps the balance.} Kd7 37. Be5) 36... Nxf6 $17 {[%emt 0:00:13]} 37. gxf6 {[%emt 0:00:00]} (37. Re1+ $17 Kd5 38. gxf6) 37... Kxf6 {[%emt 0:00:01][%mdl 4096] Endgame White must now prevent ...Rhh2. KRR-KRB} 38. Bd3 $2 {[%emt 0:00:35]} (38. Kb1 {only move.}) 38... Rhh2 $19 {[%emt 0:00:01]} 39. Re1 {[%emt 0:00:09]} Rxb2 {[%emt 0:00:03]} 40. Bb1 {[%emt 0:00:00]} Rbf2 {[%emt 0:00:14] aiming for ...Rh3.} 41. Rd1 {[%emt 0:00:19]} Ke5 {[%emt 0:00:04]} 42. Rd8 $2 {[%emt 0:00:11]} (42. Re1+ $19 Kd4 43. Rd1+ Kc5 44. Rd8) 42... a5 $2 {[%emt 0:00:34]} (42... Rf1+ {mates} 43. Rd1 Rff2 44. Re1+ Kf6 45. Rd1 a5 46. a3 a4 47. Rd8 Ke5 48. Rd7 Rf1+ 49. Rd1 Rf3 50. Bd3 Ra2 51. Re1+ Kd6 52. Kb1 Rxa3 53. Bc2 Rf4 54. Be4 Rb3+ 55. Ka1 Rf2 56. Rc1 Re3 57. Bh7 Rg3 58. Be4 Ra3+ 59. Kb1 Re3 60. Bg6 Rg3 61. Bh7 Rh2 62. Be4 Rb3+ 63. Ka1 Re3 64. Bg6 Rf2 65. Kb1 Rb3+ 66. Ka1 Ra3+ 67. Kb1 Rb3+ 68. Ka1 Rbf3 69. Kb1 Rf1 70. Rxf1 Rxf1+ 71. Ka2 Kc5 72. Ka3 Ra1+ 73. Kb2 Rg1 74. Bh5 Kb5 75. Ka3 Rg3+ 76. Kb2 Rb3+ 77. Ka2 Kb4 78. Bf7 Ra3+ 79. Kb1 Rc3 80. Kb2 Rd3 81. Kc1 Ka5 82. Kb2 Re3 83. Bd5 Kb4 84. Bf7 Re2+ 85. Kb1 Rf2 86. Be6 Rg2 87. Bd5 Rg5 88. Be6 Rg1+ 89. Kc2 Rg2+ 90. Kc1 Kc3 91. Kb1 Rb2+ 92. Ka1 Rb6 93. Bg8 Rb4 94. Ka2 Rg4 95. Bf7 Rf4 96. Be6 Rf6 97. Bg8 Kb4 98. Kb2 Rf2+ 99. Kb1 Rf8 100. Bd5 Rf1+ 101. Ka2 Rf2+ 102. Ka1 Rf5 103. Bg8 Rg5 104. Be6 Rg6 105. Bf7 Rg4 106. Kb1 Rf4 107. Be6 Rf6 108. Bd5 Kc3 109. Ka2 Rf5 110. Be4 Re5 111. Bg6 Kb4 112. Bf7 Rg5 113. Be6 Re5 114. Bg8 Re2+ 115. Kb1 Re1+ 116. Ka2 Re2+ 117. Kb1 Rg2 118. Bd5 Rd2 119. Bf7 Rg2 120. Bd5) 43. a4 $2 {[%emt 0:00:10]} (43. Rd1) 43... Rhg2 $2 {[%emt 0:00:48]} (43... Rh1+ 44. Rd1 Rxd1+ 45. Kxd1 Rf1+ 46. Kc2 Rf4) 44. Rd1 {[%emt 0:00:07]} Kf4 {[%emt 0:00:10]} 45. Re1 {[%emt 0:00:10]} Rg3 {[%emt 0:00:23] Threatens to win with ...Rc3+.} 46. Re4+ $2 {[%emt 0:00:07]} (46. Be4) 46... Kg5 {[%emt 0:00:03]} 47. Re5+ {[%emt 0:00:17]} Kf6 {[%emt 0:00:01] ( -> ...Rg1+)} 48. Rd5 {[%emt 0:00:02]} Rc3+ {[%emt 0:00:17]} 49. Kd1 {[%emt 0:00:01]} Ra3 {[%emt 0:00:17]} 50. Bc2 {[%emt 0:00:19]} Ra1+ {[%emt 0:00:04] Weighted Error Value: White=0.89/Black=0.39} 0-1

[Event "MCCT Chessable Masters 2022"]
[Site "Online"]
[Date "2022.05.16"]
[Round "14.4"]
[White "Praggnanandhaa R"]
[Black "Shankland, Sam"]
[Result "1/2-1/2"]
[ECO "D45"]
[WhiteElo "2642"]
[BlackElo "2718"]
[Annotator "TA"]
[PlyCount "79"]
[EventDate "2022.05.19"]
[EventType "tourn"]
[EventCountry "NET"]
[SourceTitle "playchess.com"]
[Source "ChessBase"]
[SourceQuality "1"]
[TimeControl "900+10"]

{[%evp 23,79,0,8,0,10,0,0,0,0,-2,8,0,0,0,0,0,0,0,0,0,8,0,-7,-41,-17,-49,-52,-36,-36,-27,-35,-66,-20,-54,-55,-56,-56,-53,-63,-59,24,-51,0,-6,0,0,0,0,0,0,0,0,0,0,0,0,0,0]} 1. d4 {[%emt 0:00:00]} Nf6 {[%emt 0:00:00]} 2. c4 {[%emt 0:00:02]} e6 {[%emt 0:00:03]} 3. Nf3 {[%emt 0:00:02]} d5 {[%emt 0:00:02]} 4. Nc3 {[%emt 0:00:01]} c6 {[%emt 0:00:03]} 5. e3 {[%emt 0:00:01]} Nbd7 {[%emt 0:00:03]} 6. Qc2 {[%emt 0:00:03]} Bd6 {[%emt 0:00:03]} 7. b3 {[%emt 0:00:01]} O-O {[%emt 0:00:04]} 8. Be2 {[%emt 0:00:01]} b6 {[%emt 0:00:06]} 9. O-O {[%emt 0:00:07]} Bb7 {[%emt 0:00:01]} 10. Bb2 {[%emt 0:00:02]} Qe7 {[%emt 0:00:01]} 11. Rad1 {[%emt 0:00:02]} Rad8 {[%emt 0:00:02]} 12. Rfe1 {[%emt 0:00:04]} Rfe8 {[%emt 0:00:05]} 13. Bf1 {[%emt 0:00:02] D45: Semi-Slav: 5 e3.} Nf8 {[%emt 0:00:34]} 14. e4 {[%emt 0:06:26]} dxe4 {[%emt 0:00:08]} 15. Nxe4 {[%emt 0:00:03]} Nxe4 {[%emt 0:00:01]} 16. Qxe4 {[%emt 0:02:10]} c5 {[%emt 0:00:11]} 17. d5 {[%emt 0:00:03]} f6 {[%emt 0:00:06] [#]} 18. Qc2 $146 {[%emt 0:02:13]} ({Predecessor:} 18. Qg4 Qf7 19. Nh4 Bc8 20. dxe6 Rxe6 21. Nf5 Qg6 22. Qxg6 hxg6 23. Nxd6 Rdxd6 24. Bc1 Rxe1 25. Rxe1 {½-½ (39) Khusnutdinov,R (2491)-Nihal,S (2620) Chess.com INT 2020}) 18... Qf7 {[%emt 0:00:22]} 19. g3 {[%emt 0:00:57]} exd5 {[%emt 0:01:16] Threatens to win with ...d4.} 20. Rxe8 {[%emt 0:00:12]} Rxe8 {[%emt 0:00:02]} 21. cxd5 {[%emt 0:00:01]} Ng6 {[%emt 0:00:30]} (21... Bxd5 $2 {[#]} 22. Rxd5 $1 {[%mdl 512]} Qe7 23. Bc4 $18) 22. Bb5 {[%emt 0:00:45]} Rd8 {[%emt 0:00:50]} 23. Bc6 {[%emt 0:01:30]} Bc8 {[%emt 0:00:41]} (23... Ba6 $5 {[%cal Rg6e7]}) 24. Qe4 {[%emt 0:00:28]} Ne7 $1 {[%emt 0:00:23]} 25. Bb5 {[%emt 0:00:04]} a6 {[%emt 0:01:20]} 26. Bf1 {[%emt 0:00:26]} Qh5 {[%emt 0:02:07]} 27. Bg2 {[%emt 0:00:39]} b5 {[%emt 0:00:51]} (27... Bb7 $15 {feels stronger.}) 28. Rd2 {[%emt 0:00:24]} Re8 {[%emt 0:01:03]} 29. Qd3 {[%emt 0:01:19]} Bf5 {[%emt 0:00:37]} 30. Qf1 {[%emt 0:00:02]} Be4 {[%emt 0:01:03]} 31. Nh4 {[%emt 0:00:32]} Ng6 {[%emt 0:01:23]} ({Of course not} 31... Bxd5 32. Bxd5+ Nxd5 33. Qd1 Qxd1+ 34. Rxd1 $11) (31... Nxd5 $2 32. Qe2 Qxe2 33. Rxe2 $18) ({Black should play} 31... Bxg2 $15 32. Nxg2 Nf5) 32. Nxg6 {[%emt 0:00:12]} (32. Qe2 $1 $11 Qg5 33. Nf3) 32... Bxg2 {[%emt 0:00:31]} (32... hxg6 $2 33. Qe2 $18) 33. Kxg2 {[%emt 0:00:03] [#] Strongly threatening Nh4. The position is equal.} hxg6 {[%emt 0:00:03]} 34. a4 $1 {[%emt 0:00:18]} Bf4 {[%emt 0:02:20]} 35. gxf4 {[%emt 0:00:42]} Qg4+ {[%emt 0:00:01]} 36. Kh1 {[%emt 0:00:01] aiming for Qd1.} Qf3+ {[%emt 0:00:01]} 37. Kg1 {[%emt 0:00:01]} Qg4+ {[%emt 0:00:03]} 38. Kh1 {[%emt 0:00:01] Qd1 is the strong threat.} Qf3+ {[%emt 0:00:01]} 39. Kg1 {[%emt 0:00:01] Black must now prevent Qd1.} Qg4+ {[%emt 0:00:01]} 40. Kh1 {[%emt 0:00:00] Weighted Error Value: White=0.13 (very precise) /Black=0.13 (very precise)} 1/2-1/2

[Event "MCCT Chessable Masters 2022"]
[Site "Online"]
[Date "2022.05.16"]
[Round "14.5"]
[White "Harikrishna, Pentala"]
[Black "Mishra, Abhimanyu"]
[Result "1-0"]
[ECO "B90"]
[WhiteElo "2705"]
[BlackElo "2535"]
[Annotator "TA"]
[PlyCount "137"]
[EventDate "2022.05.19"]
[EventType "tourn"]
[EventCountry "NET"]
[SourceTitle "playchess.com"]
[Source "ChessBase"]
[SourceQuality "1"]
[TimeControl "900+10"]

{[%evp 14,137,0,7,0,0,10,0,0,2,21,0,0,0,1,0,8,8,16,0,17,18,8,11,14,-19,0,-10,-15,-16,0,0,0,0,0,0,11,6,9,0,0,0,0,0,16,0,0,-30,0,0,0,0,0,-54,-54,-54,-7,-7,-7,-102,-102,-102,83,83,147,156,142,98,240,20,97,97,97,75,82,89,124,0,0,0,0,0,0,0,0,0,0,0,544,335,1439,1354,1419,1393,1325,1301,1308,1200,29970,29968,29970,29968,29974,29973,29976,29976,29973,29969,2542,1664,29973,29973,29986,29986,29987,29988,29988,29989,29989,29990,29991,29991,29992,29993,29994,29995]} 1. e4 {[%emt 0:00:00]} c5 {[%emt 0:00:00]} 2. Nf3 {[%emt 0:00:02]} d6 {[%emt 0:00:02]} 3. d4 {[%emt 0:00:01]} cxd4 {[%emt 0:00:01]} 4. Nxd4 {[%emt 0:00:01]} Nf6 {[%emt 0:00:01]} 5. Nc3 {[%emt 0:00:01]} a6 {[%emt 0:00:01]} 6. a4 {[%emt 0:00:03]} e5 {[%emt 0:00:02]} 7. Nf3 {[%emt 0:00:02]} Be7 {[%emt 0:00:02]} 8. Bg5 {[%emt 0:00:03] is now debated instead of 8.Bc4.} Be6 {[%emt 0:00:07] B90: Sicilian Najdorf: Unusual White 6th moves, 6 Be3 Ng4 and 6 Be3 e5.} 9. Bxf6 {[%emt 0:00:01]} Bxf6 {[%emt 0:00:01]} 10. Nd5 {[%emt 0:00:01] Inhibits Qb6.} Nd7 {[%emt 0:00:14] The position is equal.} 11. Bc4 {[%emt 0:00:04]} Rc8 {[%emt 0:00:06]} 12. Qe2 {[%emt 0:00:03]} Nb6 {[%emt 0:00:03]} 13. Nxb6 {[%emt 0:00:01]} Qxb6 {[%emt 0:00:02]} 14. Bxe6 {[%emt 0:00:01]} fxe6 {[%emt 0:00:01]} 15. c3 {[%emt 0:00:01] Inhibits Qb4.} O-O {[%emt 0:00:05]} 16. O-O {[%emt 0:00:02] [#]} a5 $146 {[%emt 0:00:56]} ({Predecessor:} 16... Qc6 17. Qd1 Be7 18. Re1 Rf6 19. a5 Rcf8 20. Qa4 Qc8 21. Re3 Bd8 22. c4 Rf4 {½-½ (54) Anton Guijarro,D (2679)-Giri,A (2764) Wijk aan Zee 2021}) 17. Rfd1 {[%emt 0:00:13]} Be7 {[%emt 0:00:32]} 18. Rd3 {[%emt 0:00:29]} Rf4 {[%emt 0:00:51]} 19. g3 {[%emt 0:00:15]} Rf7 {[%emt 0:00:24]} 20. h4 {[%emt 0:00:14]} Rcf8 {[%emt 0:00:24]} 21. Kg2 {[%emt 0:00:04]} Qa6 {[%emt 0:00:32][%cal Of7f3]} 22. Re1 {[%emt 0:01:39]} Qc4 {[%emt 0:00:46]} 23. Qd1 {[%emt 0:01:30]} h6 {[%emt 0:00:43]} 24. Re2 {[%emt 0:01:11]} Kh7 {[%emt 0:02:14]} 25. b3 {[%emt 0:00:37]} Qc6 {[%emt 0:00:18]} 26. c4 {[%emt 0:00:04]} Qc5 {[%emt 0:00:42]} 27. Ree3 {[%emt 0:01:56]} Kg8 {[%emt 0:01:16]} 28. Rd2 {[%emt 0:04:18]} Kh8 {[%emt 0:01:14]} 29. Red3 {[%emt 0:00:39]} Bd8 {[%emt 0:02:41][%cal Be7d8,Bd8b6,Bb6c5][%mdl 32]} 30. Qh1 {[%emt 0:00:33]} Qb4 {[%emt 0:01:51][%cal Of7f3] aiming for ...Rxf3!} 31. Re2 {[%emt 0:03:19]} Bb6 {[%emt 0:00:53]} 32. Qh3 {[%emt 0:00:28]} Rf6 {[%emt 0:01:13]} 33. Qg4 {[%emt 0:00:02]} (33. g4 $1 $11 Rf4 34. g5) 33... Bc5 $15 {[%emt 0:00:32]} 34. h5 {[%emt 0:00:02]} Qb6 {[%emt 0:00:49]} (34... Kh7 $15) 35. Nh4 $11 {[%emt 0:00:47]} Rxf2+ {[%emt 0:00:29]} 36. Rxf2 {[%emt 0:00:47]} (36. Kh3 $11 {remains equal.}) 36... Rxf2+ $17 {[%emt 0:00:03]} 37. Kh3 {[%emt 0:00:01]} Qd8 $2 {[%emt 0:00:51]} (37... Rf6 $1 $17 {stays on course.}) 38. Qxe6 $16 {[%emt 0:00:32]} Qg5 {[%emt 0:00:11]} (38... Rf6 $142 39. Qg4 Kh7) 39. Qe8+ $1 {[%emt 0:00:31]} Kh7 {[%emt 0:00:02]} 40. Qg6+ {[%emt 0:00:01]} Kg8 {[%emt 0:00:20]} (40... Qxg6 $16 41. hxg6+ Kg8) 41. Rf3 $2 {[%emt 0:00:55] Really sharp!} (41. Qxg5 $18 {White wants to mate with Qe7.} hxg5 42. Nf5) 41... Qxg6 {[%emt 0:00:11]} (41... Qxh4+ $1 $11 42. Kxh4 Rxf3) 42. hxg6 {[%emt 0:00:04]} Rxf3 {[%emt 0:00:03]} 43. Nxf3 $11 {[%emt 0:00:01][%mdl 4096] Endgame KB-KN} Kf8 {[%emt 0:00:05]} 44. Kg4 {[%emt 0:00:01]} Ke7 {[%emt 0:00:15]} 45. Kf5 {[%emt 0:00:02]} (45. Kh5 $16) 45... Bf2 {[%emt 0:00:09]} 46. g4 {[%emt 0:00:03]} Be3 {[%emt 0:00:05]} 47. Ne1 {[%emt 0:00:07]} b6 {[%emt 0:00:11]} 48. Nd3 {[%emt 0:00:19]} Bd2 {[%emt 0:00:13]} 49. c5 {[%emt 0:00:19]} bxc5 {[%emt 0:00:07]} 50. Nb2 {[%emt 0:00:01]} Kd7 $2 {[%emt 0:00:16][%mdl 8192] White leaves nothing to chance now.} (50... Bb4 $11 {and Black stays safe.}) 51. Nc4 $18 {[%emt 0:00:02]} Be1 {[%emt 0:00:15]} (51... Bb4 52. Nb6+ Kc6) 52. Nb6+ $1 {[%emt 0:00:01]} Ke7 {[%emt 0:00:02]} 53. Nd5+ $1 {[%emt 0:00:01]} Kd7 {[%emt 0:00:02] [#]} 54. Nf6+ $1 {[%emt 0:00:01][%mdl 512]} Ke7 {[%emt 0:00:08] [#]} 55. Nh5 $1 {[%emt 0:00:01]} Kf8 {[%emt 0:00:13]} 56. Ke6 {[%emt 0:00:01]} Bb4 {[%emt 0:00:26]} 57. Ng3 {[%emt 0:00:09]} Ba3 {[%emt 0:00:09]} 58. Nf5 {[%emt 0:00:02]} Bb2 {[%emt 0:00:12]} 59. Nxd6 {[%emt 0:00:06]} Bc3 {[%emt 0:00:11]} 60. Kd7 {[%emt 0:00:12]} Bb4 {[%emt 0:00:07]} 61. Nb7 {[%emt 0:00:13] Hoping for Nd6.} Bc3 {[%emt 0:00:08]} 62. Nxc5 {[%emt 0:00:04] White mates.} Bb4 {[%emt 0:00:04]} 63. Ne6+ {[%emt 0:00:03]} Kg8 {[%emt 0:00:01]} 64. Ke8 {[%emt 0:00:14]} Bd6 {[%emt 0:00:17]} 65. Nd8 {[%emt 0:00:03]} Bb4 {[%emt 0:00:15]} 66. Nc6 {[%emt 0:00:01]} Bc3 {[%emt 0:00:08]} 67. Ne7+ {[%emt 0:00:19]} Kh8 {[%emt 0:00:01]} 68. Kf7 {[%emt 0:00:21]} Bb4 {[%emt 0:00:30]} 69. Nf5 {[%emt 0:00:09] Weighted Error Value: White=0.17 (very precise) /Black=0.52} 1-0